fUSD/lending_fUSD_20260617
["ID","MTS","AMOUNT","RATE_DAILY","PERIOD"]
[425259570,1781638232000,-218.83683969,0.00014878,2]
[425259572,1781638232000,-500.0,0.00014878,2]
[425259574,1781638232000,-279.32566199,0.00014878,2]
[425259582,1781638232000,-500.0,0.00014878,2]
[425259571,1781638232000,-281.16316031,0.00014878,2]
[425259569,1781638232000,-500.0,0.00014878,2]
[425259573,1781638232000,-220.67433801,0.00014878,2]
[425259642,1781638238000,-321.0,0.00014882,2]
[425259640,1781638238000,-150.0,0.00014882,2]
[425259647,1781638238000,-313.0,0.00014882,2]
[425259634,1781638238000,-152.0,0.00014881,2]
[425259636,1781638238000,-317.0,0.00014882,2]
[425259633,1781638238000,-315.0,0.00014881,2]
[425259645,1781638238000,-317.0,0.00014882,2]
[425259637,1781638238000,-316.0,0.00014882,2]
[425259643,1781638238000,-153.0,0.00014882,2]
[425259654,1781638238000,-319.0,0.00014882,2]
[425259639,1781638238000,-312.0,0.00014882,2]
[425259641,1781638238000,-312.0,0.00014882,2]
[425259644,1781638238000,-321.0,0.00014882,2]
[425259646,1781638238000,-150.0,0.00014882,2]
[425259649,1781638238000,-321.0,0.00014882,2]
[425259648,1781638238000,-318.0,0.00014882,2]
[425259651,1781638238000,-314.0,0.00014882,2]
[425259632,1781638238000,-313.0,0.00014881,2]
[425259650,1781638238000,-151.0,0.00014882,2]
[425259638,1781638238000,-464.613,0.00014882,2]
[425259635,1781638238000,-151.0,0.00014881,2]
[425259623,1781638238000,-500.0,0.00014878,2]
[425259630,1781638238000,-151.0,0.00014881,2]
[425259610,1781638238000,-321.10887026,0.00014878,2]
[425259613,1781638238000,-320.63477518,0.00014878,2]
[425259612,1781638238000,-500.0,0.00014878,2]
[425259611,1781638238000,-500.0,0.00014878,2]
[425259614,1781638238000,-500.0,0.00014878,2]
[425259616,1781638238000,-500.0,0.00014878,2]
[425259617,1781638238000,-500.0,0.00014878,2]
[425259615,1781638238000,-500.0,0.00014878,2]
[425259619,1781638238000,-500.0,0.00014878,2]
[425259629,1781638238000,-318.0,0.00014881,2]
[425259624,1781638238000,-400.0,0.00014878,2]
[425259620,1781638238000,-500.0,0.00014878,2]
[425259618,1781638238000,-500.0,0.00014878,2]
[425259621,1781638238000,-500.0,0.00014878,2]
[425259653,1781638238000,-151.0,0.00014882,2]
[425259626,1781638238000,-500.0,0.00014878,2]
[425259627,1781638238000,-500.0,0.00014878,2]
[425259631,1781638238000,-316.0,0.00014881,2]
[425259625,1781638238000,-500.0,0.00014878,2]
[425259628,1781638238000,-432.31028503,0.00014878,2]
[425259622,1781638238000,-500.0,0.00014878,2]
[425259657,1781638238000,-151.0,0.00014882,2]
[425259656,1781638238000,-311.0,0.00014882,2]
[425259655,1781638238000,-321.0,0.00014882,2]
[425259683,1781638238000,-310.0,0.00014889,2]
[425259693,1781638238000,-3756.4120609,0.000149,2]
[425259685,1781638238000,-150.0,0.00014889,2]
[425259684,1781638238000,-309.0,0.00014889,2]
[425259682,1781638238000,-151.0,0.00014889,2]
[425259688,1781638238000,-279.37620566,0.00014889,2]
[425259695,1781638238000,-314.0,0.00014902,2]
[425259652,1781638238000,-316.0,0.00014882,2]
[425259690,1781638238000,-5800.0,0.000149,2]
[425259681,1781638238000,-316.0,0.00014889,2]
[425259686,1781638238000,-314.0,0.00014889,2]
[425259708,1781638238000,-150.0,0.00014938,2]
[425259712,1781638238000,-67720.3740503,0.00014957,2]
[425259710,1781638238000,-3161.2258406,0.00014957,2]
[425259700,1781638238000,-173.42014853,0.00014925,2]
[425259705,1781638238000,-200.0,0.00014938,2]
[425259714,1781638238000,-11349.7897188,0.00014957,2]
[425259717,1781638238000,-292.0489505,0.00014957,2]
[425259702,1781638238000,-469.04379494,0.0001493,2]
[425259719,1781638238000,-162.18335046,0.0001497,2]
[425259698,1781638238000,-309.0,0.00014902,2]
[425259679,1781638238000,-314.0,0.00014889,2]
[425259687,1781638238000,-319.0,0.00014889,2]
[425259677,1781638238000,-152.0,0.00014889,2]
[425259680,1781638238000,-151.0,0.00014889,2]
[425259659,1781638238000,-310.0,0.00014882,2]
[425259665,1781638238000,-315.0,0.00014882,2]
[425259669,1781638238000,-318.0,0.00014889,2]
[425259664,1781638238000,-151.0,0.00014882,2]
[425259660,1781638238000,-151.0,0.00014882,2]
[425259662,1781638238000,-310.0,0.00014882,2]
[425259667,1781638238000,-150.0,0.00014882,2]
[425259663,1781638238000,-312.0,0.00014882,2]
[425259666,1781638238000,-317.0,0.00014882,2]
[425259658,1781638238000,-311.0,0.00014882,2]
[425259661,1781638238000,-310.0,0.00014882,2]
[425259670,1781638238000,-151.0,0.00014889,2]
[425259671,1781638238000,-310.0,0.00014889,2]
[425259672,1781638238000,-150.0,0.00014889,2]
[425259675,1781638238000,-319.0,0.00014889,2]
[425259674,1781638238000,-151.0,0.00014889,2]
[425259673,1781638238000,-311.0,0.00014889,2]
[425259676,1781638238000,-312.0,0.00014889,2]
[425259678,1781638238000,-317.0,0.00014889,2]
[425259668,1781638238000,-312.0,0.00014882,2]
[425259746,1781638239000,-500.0,0.00014999,2]
[425259748,1781638239000,-500.0,0.00014999,2]
[425259764,1781638239000,-500.0,0.00014999,2]
[425259762,1781638239000,-500.0,0.00014999,2]
[425259759,1781638239000,-500.0,0.00014999,2]
[425259763,1781638239000,-500.0,0.00014999,2]
[425259740,1781638239000,-500.0,0.00014999,2]
[425259758,1781638239000,-500.0,0.00014999,2]
[425259735,1781638239000,-500.0,0.00014999,2]
[425259727,1781638239000,-282.6861,0.00014999,2]
[425259737,1781638239000,-500.0,0.00014999,2]
[425259744,1781638239000,-192.71236502,0.00014999,2]
[425259731,1781638239000,-500.0,0.00014999,2]
[425259733,1781638239000,-500.0,0.00014999,2]
[425259729,1781638239000,-500.0,0.00014999,2]
[425259725,1781638239000,-151.0,0.00014997,2]
[425259723,1781638239000,-166.66,0.00014992,2]
[425259721,1781638239000,-500.0,0.00014985,2]
[425259742,1781638239000,-500.0,0.00014999,2]
[425259766,1781638239000,-500.0,0.00014999,2]
[425259751,1781638239000,-500.0,0.00014999,2]
[425259755,1781638239000,-500.0,0.00014999,2]
[425259753,1781638239000,-500.0,0.00014999,2]
[425259812,1781638239000,-586.89278139,0.00015,2]
[425259810,1781638239000,-776.0,0.00015,2]
[425259794,1781638239000,-666.0,0.00014999,2]
[425259798,1781638239000,-300.0,0.00014999,2]
[425259801,1781638239000,-300.0,0.00014999,2]
[425259796,1781638239000,-300.0,0.00014999,2]
[425259792,1781638239000,-300.0,0.00014999,2]
[425259789,1781638239000,-300.0,0.00014999,2]
[425259803,1781638239000,-2895877.0140911,0.00015,2]
[425259775,1781638239000,-500.0,0.00014999,2]
[425259770,1781638239000,-500.0,0.00014999,2]
[425259772,1781638239000,-500.0,0.00014999,2]
[425259779,1781638239000,-500.0,0.00014999,2]
[425259787,1781638239000,-300.0,0.00014999,2]
[425259783,1781638239000,-500.0,0.00014999,2]
[425259768,1781638239000,-500.0,0.00014999,2]
[425259785,1781638239000,-173.46902805,0.00014999,2]
[425259781,1781638239000,-500.0,0.00014999,2]
[425259777,1781638239000,-500.0,0.00014999,2]
[425259841,1781638241000,-7555.5,0.00015,2]
[425259842,1781638241000,-1119.44662014,0.00015,2]
[425259844,1781638241000,-759.89329178,0.00015,2]
[425259845,1781638241000,-1856626.37675135,0.00015,2]
[425259843,1781638241000,-396.20406828,0.00015,2]
[425259872,1781638243000,-1149.84946269,0.00015,2]
[425259869,1781638243000,-14153.20011091,0.00015,2]
[425259871,1781638243000,-616.96939535,0.00015,2]
[425259870,1781638243000,-726.27984524,0.00015,2]
[425259873,1781638243000,-212394.4052022,0.00015,2]
[425259874,1781638243000,-376.02530499,0.00015,2]
[425259875,1781638243000,-608.0,0.00015,2]
[425259877,1781638243000,-667.14912001,0.00015,2]
[425259876,1781638243000,-1055.240201,0.00015,2]
[425259885,1781638246000,-637.54852504,0.00015,2]
[425259883,1781638246000,-4920.89138146,0.00015,2]
[425259884,1781638246000,-328.22943269,0.00015,2]
[425259880,1781638246000,-314.0,0.00014999,2]
[425259882,1781638246000,-1015.54744635,0.00015,2]
[425259881,1781638246000,-47165.8460891,0.00015,2]
[425259898,1781638410000,587.749,0.000147,2]
[425259899,1781638483000,150.0,0.00014356,2]
[425259900,1781638814000,151.0,0.00014025,2]
[425259901,1781638817000,151.0,0.00014025,2]
[425259902,1781638821000,151.0,0.00014025,2]
[425259903,1781638829000,1000.0,0.0003,120]
[425259904,1781639130000,631.59525379,0.00030137,120]
[425259908,1781639208000,166.66,0.00014526,2]
[425259907,1781639208000,166.66,0.00014238,2]
[425259906,1781639208000,166.66,0.00013951,2]
[425259905,1781639208000,166.66,0.00013663,2]
[425259909,1781639297000,714.0,0.00014382,2]
[425259910,1781639306000,150.0,0.00014382,2]
[425259913,1781639344000,-177.55458988,0.00014798,2]
[425259912,1781639344000,-500.0,0.00014798,2]
[425259911,1781639344000,-500.0,0.00014798,2]
[425259914,1781639344000,-500.0,0.00014798,2]
[425259915,1781639344000,-500.0,0.00014798,2]
[425259916,1781639344000,-500.0,0.00014798,2]
[425259918,1781639344000,-500.0,0.00014798,2]
[425259919,1781639344000,-237.31407387,0.00014798,2]
[425259920,1781639344000,-500.0,0.00014798,2]
[425259921,1781639344000,-500.0,0.00014798,2]
[425259917,1781639344000,-500.0,0.00014798,2]
[425259932,1781639345000,-160.0,0.00014821,2]
[425259935,1781639345000,-190.93552451,0.00014899,2]
[425259934,1781639345000,-25000.0,0.00014891,3]
[425259933,1781639345000,-245.19472552,0.00014882,2]
[425259931,1781639345000,-166.66,0.00014814,2]
[425259929,1781639345000,-231.19273373,0.00014799,2]
[425259930,1781639345000,-217.76,0.00014812,2]
[425259925,1781639345000,-234.4765172,0.00014799,2]
[425259937,1781639345000,-503.88187008,0.00014899,2]
[425259927,1781639345000,-186.68794103,0.00014799,2]
[425259926,1781639345000,-500.0,0.00014799,2]
[425259924,1781639345000,-500.0,0.00014798,2]
[425259923,1781639345000,-500.0,0.00014798,2]
[425259922,1781639345000,-500.0,0.00014798,2]
[425259928,1781639345000,-302.61719952,0.00014799,2]
[425259938,1781639345000,-681.7635,0.00014899,2]
[425259936,1781639345000,-336.83289755,0.00014899,2]
[425259951,1781639345000,-151.0,0.00014997,2]
[425259953,1781639345000,-321.0,0.00014999,2]
[425259955,1781639345000,-320.0,0.00014999,2]
[425259952,1781639345000,-151.0,0.00014997,2]
[425259950,1781639345000,-23545.56704688,0.0001499,2]
[425259940,1781639345000,-2345.31914052,0.000149,2]
[425259948,1781639345000,-205.66454561,0.0001499,2]
[425259949,1781639345000,-205.66454561,0.0001499,2]
[425259946,1781639345000,-500.0,0.00014985,2]
[425259947,1781639345000,-205.66454561,0.0001499,2]
[425259945,1781639345000,-159.85,0.00014985,2]
[425259943,1781639345000,-806.65,0.00014976,2]
[425259944,1781639345000,-265.59,0.00014985,2]
[425259939,1781639345000,-25000.0,0.000149,3]
[425259942,1781639345000,-168.1562511,0.0001497,2]
[425259941,1781639345000,-150.0,0.00014947,2]
[425259954,1781639345000,-150.0,0.00014999,2]
[425259965,1781639346000,-500.0,0.00014999,2]
[425259964,1781639346000,-500.0,0.00014999,2]
[425259967,1781639346000,-500.0,0.00014999,2]
[425259970,1781639346000,-500.0,0.00014999,2]
[425259968,1781639346000,-500.0,0.00014999,2]
[425259966,1781639346000,-500.0,0.00014999,2]
[425259973,1781639346000,-500.0,0.00014999,2]
[425259962,1781639346000,-500.0,0.00014999,2]
[425259961,1781639346000,-470.2,0.00014999,2]
[425259960,1781639346000,-563.33987786,0.00014999,2]
[425259959,1781639346000,-500.0,0.00014999,2]
[425259958,1781639346000,-500.0,0.00014999,2]
[425259957,1781639346000,-319.0,0.00014999,2]
[425259956,1781639346000,-150.0,0.00014999,2]
[425259963,1781639346000,-500.0,0.00014999,2]
[425259971,1781639346000,-500.0,0.00014999,2]
[425259969,1781639346000,-500.0,0.00014999,2]
[425259975,1781639346000,-500.0,0.00014999,2]
[425259972,1781639346000,-500.0,0.00014999,2]
[425259988,1781639346000,-500.0,0.00014999,2]
[425259990,1781639346000,-500.0,0.00014999,2]
[425259989,1781639346000,-500.0,0.00014999,2]
[425259987,1781639346000,-500.0,0.00014999,2]
[425259985,1781639346000,-500.0,0.00014999,2]
[425259986,1781639346000,-500.0,0.00014999,2]
[425259981,1781639346000,-500.0,0.00014999,2]
[425259983,1781639346000,-500.0,0.00014999,2]
[425259982,1781639346000,-500.0,0.00014999,2]
[425259980,1781639346000,-500.0,0.00014999,2]
[425259978,1781639346000,-500.0,0.00014999,2]
[425259979,1781639346000,-500.0,0.00014999,2]
[425259977,1781639346000,-500.0,0.00014999,2]
[425259976,1781639346000,-500.0,0.00014999,2]
[425259974,1781639346000,-500.0,0.00014999,2]
[425259984,1781639346000,-192.44,0.00014999,2]
[425259993,1781639347000,-300.0,0.00014999,2]
[425259994,1781639347000,-300.0,0.00014999,2]
[425259992,1781639347000,-300.0,0.00014999,2]
[425259996,1781639347000,-300.0,0.00014999,2]
[425259991,1781639347000,-192.71236502,0.00014999,2]
[425259995,1781639347000,-666.0,0.00014999,2]
[425259997,1781639347000,-300.0,0.00014999,2]
[425259999,1781639347000,-666.0,0.00014999,2]
[425260000,1781639347000,-4889956.3101089,0.00015,2]
[425259998,1781639347000,-300.0,0.00014999,2]
[425260002,1781639432000,-224.24362638,0.00014797,2]
[425260009,1781639432000,-1135.66,0.00014899,2]
[425260006,1781639432000,-411.53765,0.00014899,2]
[425260005,1781639432000,-2828.10168465,0.00014899,2]
[425260003,1781639432000,-193.0348971,0.00014797,2]
[425260004,1781639432000,-1917.94184608,0.00014899,2]
[425260001,1781639432000,-275.75637362,0.00014797,2]
[425260135,1781639439000,-315.0,0.00014999,2]
[425260137,1781639439000,-500.0,0.00014999,2]
[425260141,1781639439000,-500.0,0.00014999,2]
[425260149,1781639439000,-500.0,0.00014999,2]
[425260143,1781639439000,-500.0,0.00014999,2]
[425260133,1781639439000,-320.0,0.00014999,2]
[425260139,1781639439000,-500.0,0.00014999,2]
[425260145,1781639439000,-500.0,0.00014999,2]
[425260116,1781639439000,-3616.32807725,0.00014899,2]
[425260126,1781639439000,-311.0,0.00014999,2]
[425260124,1781639439000,-151.0,0.00014999,2]
[425260122,1781639439000,-316.0,0.00014999,2]
[425260120,1781639439000,-5800.0,0.000149,2]
[425260118,1781639439000,-163.7,0.00014899,2]
[425260100,1781639439000,-2670.10974202,0.00014899,2]
[425260151,1781639439000,-500.0,0.00014999,2]
[425260130,1781639439000,-150.0,0.00014999,2]
[425260147,1781639439000,-500.0,0.00014999,2]
[425260128,1781639439000,-313.0,0.00014999,2]
[425260156,1781639439000,-500.0,0.00014999,2]
[425260153,1781639439000,-500.0,0.00014999,2]
[425260172,1781639439000,-500.0,0.00014999,2]
[425260173,1781639439000,-500.0,0.00014999,2]
[425260174,1781639439000,-500.0,0.00014999,2]
[425260170,1781639439000,-500.0,0.00014999,2]
[425260168,1781639439000,-500.0,0.00014999,2]
[425260169,1781639439000,-500.0,0.00014999,2]
[425260167,1781639439000,-500.0,0.00014999,2]
[425260171,1781639439000,-500.0,0.00014999,2]
[425260165,1781639439000,-500.0,0.00014999,2]
[425260164,1781639439000,-500.0,0.00014999,2]
[425260163,1781639439000,-500.0,0.00014999,2]
[425260160,1781639439000,-500.0,0.00014999,2]
[425260162,1781639439000,-500.0,0.00014999,2]
[425260159,1781639439000,-500.0,0.00014999,2]
[425260161,1781639439000,-500.0,0.00014999,2]
[425260166,1781639439000,-500.0,0.00014999,2]
[425260157,1781639439000,-500.0,0.00014999,2]
[425260220,1781639440000,-500.0,0.00015068,7]
[425260221,1781639440000,-500.0,0.00015068,7]
[425260219,1781639440000,-500.0,0.00015068,7]
[425260211,1781639440000,-500.0,0.00015068,7]
[425260206,1781639440000,-160.76827162,0.00015,2]
[425260207,1781639440000,-238129.1516048,0.00015,2]
[425260201,1781639440000,-400.0,0.00015,3]
[425260205,1781639440000,-241.15240742,0.00015,2]
[425260210,1781639440000,-500.0,0.00015068,7]
[425260208,1781639440000,-292.0489507,0.00015,2]
[425260212,1781639440000,-500.0,0.00015068,7]
[425260224,1781639440000,-150.0,0.00015068,2]
[425260214,1781639440000,-500.0,0.00015068,7]
[425260218,1781639440000,-500.0,0.00015068,7]
[425260216,1781639440000,-500.0,0.00015068,7]
[425260215,1781639440000,-500.0,0.00015068,7]
[425260217,1781639440000,-500.0,0.00015068,7]
[425260223,1781639440000,-500.0,0.00015068,7]
[425260225,1781639440000,-500.0,0.00015068,7]
[425260202,1781639440000,-50991.9350707,0.00015,2]
[425260222,1781639440000,-500.0,0.00015068,7]
[425260231,1781639440000,-615.86,0.00015068,7]
[425260230,1781639440000,-500.0,0.00015068,7]
[425260226,1781639440000,-500.0,0.00015068,7]
[425260213,1781639440000,-500.0,0.00015068,7]
[425260198,1781639440000,-14519.4490151,0.00015,2]
[425260192,1781639440000,-7219666.92979617,0.00015,2]
[425260204,1781639440000,-1627.47,0.00015,2]
[425260176,1781639440000,-500.0,0.00014999,2]
[425260175,1781639440000,-500.0,0.00014999,2]
[425260179,1781639440000,-500.0,0.00014999,2]
[425260177,1781639440000,-500.0,0.00014999,2]
[425260180,1781639440000,-500.0,0.00014999,2]
[425260184,1781639440000,-500.0,0.00014999,2]
[425260183,1781639440000,-500.0,0.00014999,2]
[425260185,1781639440000,-500.0,0.00014999,2]
[425260182,1781639440000,-500.0,0.00014999,2]
[425260181,1781639440000,-500.0,0.00014999,2]
[425260178,1781639440000,-500.0,0.00014999,2]
[425260188,1781639440000,-500.0,0.00014999,2]
[425260186,1781639440000,-500.0,0.00014999,2]
[425260187,1781639440000,-500.0,0.00014999,2]
[425260189,1781639440000,-500.0,0.00014999,2]
[425260197,1781639440000,-200.0,0.00015,2]
[425260190,1781639440000,-500.0,0.00014999,2]
[425260191,1781639440000,-500.0,0.00014999,2]
[425260195,1781639440000,-151.0,0.00015,2]
[425260193,1781639440000,-7631.97221416,0.00015,2]
[425260194,1781639440000,-581839.97813562,0.00015,2]
[425260196,1781639440000,-315.0,0.00015,2]
[425260199,1781639440000,-200.0,0.00015,2]
[425260209,1781639440000,-500.0,0.00015068,7]
[425260200,1781639440000,-500.0,0.00015,3]
[425260203,1781639440000,-5760.1708654,0.00015,2]
[425260232,1781639440000,-166.66,0.00015101,2]
[425260229,1781639440000,-500.0,0.00015068,7]
[425260228,1781639440000,-500.0,0.00015068,7]
[425260260,1781639440000,-1175.13603493,0.00016438,2]
[425260262,1781639440000,-1175.13603493,0.00016438,2]
[425260261,1781639440000,-1175.13603493,0.00016438,2]
[425260266,1781639440000,-1175.13603493,0.00016438,2]
[425260276,1781639440000,-1175.13603493,0.00016438,2]
[425260267,1781639440000,-1175.13603493,0.00016438,2]
[425260272,1781639440000,-1175.13603493,0.00016438,2]
[425260275,1781639440000,-1175.13603493,0.00016438,2]
[425260270,1781639440000,-1175.13603493,0.00016438,2]
[425260271,1781639440000,-1175.13603493,0.00016438,2]
[425260274,1781639440000,-1175.13603493,0.00016438,2]
[425260259,1781639440000,-1175.13603493,0.00016438,2]
[425260265,1781639440000,-1175.13603493,0.00016438,2]
[425260269,1781639440000,-1175.13603493,0.00016438,2]
[425260277,1781639440000,-1175.13603493,0.00016438,2]
[425260278,1781639440000,-1175.13603493,0.00016438,2]
[425260280,1781639440000,-1175.13603493,0.00016438,2]
[425260285,1781639440000,-1150.94205774,0.00016438,2]
[425260279,1781639440000,-1175.13603493,0.00016438,2]
[425260281,1781639440000,-1175.13603493,0.00016438,2]
[425260282,1781639440000,-1175.13603493,0.00016438,2]
[425260284,1781639440000,-1150.94205774,0.00016438,2]
[425260283,1781639440000,-1150.94205774,0.00016438,2]
[425260227,1781639440000,-500.0,0.00015068,7]
[425260273,1781639440000,-1175.13603493,0.00016438,2]
[425260264,1781639440000,-1175.13603493,0.00016438,2]
[425260268,1781639440000,-1175.13603493,0.00016438,2]
[425260254,1781639440000,-1175.13603493,0.00016438,2]
[425260263,1781639440000,-1175.13603493,0.00016438,2]
[425260234,1781639440000,-200.0,0.0001515,2]
[425260233,1781639440000,-150.0,0.00015149,2]
[425260240,1781639440000,-300.0,0.00016,2]
[425260239,1781639440000,-200.0,0.00015825,2]
[425260235,1781639440000,-150.0,0.00015299,2]
[425260237,1781639440000,-217.17057788,0.00015506,2]
[425260241,1781639440000,-337.16060604,0.00016,2]
[425260242,1781639440000,-337.16060604,0.000161,2]
[425260243,1781639440000,-152.0,0.00016125,2]
[425260236,1781639440000,-150.0,0.00015449,2]
[425260245,1781639440000,-193.0,0.00016278,2]
[425260244,1781639440000,-337.16060604,0.000162,2]
[425260238,1781639440000,-196.0,0.00015599,2]
[425260250,1781639440000,-151.0,0.00016438,2]
[425260258,1781639440000,-1175.13603493,0.00016438,2]
[425260257,1781639440000,-1175.13603493,0.00016438,2]
[425260255,1781639440000,-1175.13603493,0.00016438,2]
[425260251,1781639440000,-151.0,0.00016438,2]
[425260253,1781639440000,-1175.13603493,0.00016438,2]
[425260256,1781639440000,-1175.13603493,0.00016438,2]
[425260248,1781639440000,-200.0,0.0001634,2]
[425260246,1781639440000,-150.0,0.00016278,2]
[425260247,1781639440000,-300.0,0.00016278,2]
[425260249,1781639440000,-300.0,0.00016437,2]
[425260252,1781639440000,-1175.13603493,0.00016438,2]
[425260327,1781639441000,-152.0,0.00016962,2]
[425260339,1781639441000,-1242.44735456,0.0001789,2]
[425260328,1781639441000,-1168.23609955,0.00017,2]
[425260317,1781639441000,-1150.94205775,0.00016438,2]
[425260316,1781639441000,-1150.94205775,0.00016438,2]
[425260320,1781639441000,-152.0,0.00016438,2]
[425260324,1781639441000,-168.64,0.00016712,2]
[425260315,1781639441000,-1150.94205775,0.00016438,2]
[425260322,1781639441000,-152.0,0.00016438,2]
[425260318,1781639441000,-1150.94205774,0.00016438,2]
[425260329,1781639441000,-812.206478,0.00017102,2]
[425260323,1781639441000,-1000.0,0.000165,2]
[425260338,1781639441000,-1627.47,0.000177,2]
[425260345,1781639441000,-666.0,0.00017999,2]
[425260336,1781639441000,-167.437966,0.00017618,2]
[425260335,1781639441000,-812.206479,0.00017615,2]
[425260334,1781639441000,-167.437966,0.00017362,2]
[425260333,1781639441000,-812.206478,0.00017358,2]
[425260337,1781639441000,-795.01594054,0.000177,2]
[425260340,1781639441000,-300.0,0.00017999,2]
[425260341,1781639441000,-300.0,0.00017999,2]
[425260348,1781639441000,-350.0,0.00018,2]
[425260350,1781639441000,-1806.33356882,0.000181,2]
[425260352,1781639441000,-1782.36564132,0.000184,2]
[425260347,1781639441000,-1210.45362041,0.00018,2]
[425260325,1781639441000,-806.65,0.00016848,2]
[425260331,1781639441000,-167.437966,0.00017105,2]
[425260319,1781639441000,-948.69,0.00016438,2]
[425260288,1781639441000,-1150.94205774,0.00016438,2]
[425260313,1781639441000,-1150.94205774,0.00016438,2]
[425260287,1781639441000,-1150.94205774,0.00016438,2]
[425260342,1781639441000,-300.0,0.00017999,2]
[425260286,1781639441000,-1150.94205774,0.00016438,2]
[425260289,1781639441000,-1150.94205774,0.00016438,2]
[425260292,1781639441000,-1150.94205774,0.00016438,2]
[425260294,1781639441000,-1150.94205774,0.00016438,2]
[425260293,1781639441000,-1150.94205774,0.00016438,2]
[425260295,1781639441000,-1150.94205774,0.00016438,2]
[425260291,1781639441000,-1150.94205774,0.00016438,2]
[425260290,1781639441000,-1150.94205774,0.00016438,2]
[425260297,1781639441000,-1150.94205774,0.00016438,2]
[425260296,1781639441000,-1150.94205774,0.00016438,2]
[425260326,1781639441000,-170.03,0.00016912,2]
[425260299,1781639441000,-1150.94205774,0.00016438,2]
[425260301,1781639441000,-1150.94205774,0.00016438,2]
[425260300,1781639441000,-1150.94205774,0.00016438,2]
[425260302,1781639441000,-1150.94205774,0.00016438,2]
[425260303,1781639441000,-1150.94205774,0.00016438,2]
[425260304,1781639441000,-1150.94205774,0.00016438,2]
[425260307,1781639441000,-1150.94205774,0.00016438,2]
[425260305,1781639441000,-1150.94205774,0.00016438,2]
[425260310,1781639441000,-1150.94205774,0.00016438,2]
[425260309,1781639441000,-1150.94205774,0.00016438,2]
[425260306,1781639441000,-1150.94205774,0.00016438,2]
[425260308,1781639441000,-1150.94205774,0.00016438,2]
[425260311,1781639441000,-1150.94205774,0.00016438,2]
[425260298,1781639441000,-1150.94205774,0.00016438,2]
[425260343,1781639441000,-300.0,0.00017999,2]
[425260349,1781639441000,-1500.0,0.00018063,2]
[425260346,1781639441000,-111124.4761402,0.00018,2]
[425260382,1781639441000,-151.0,0.00018997,2]
[425260378,1781639441000,-151.0,0.00018996,2]
[425260384,1781639441000,-5249.5529582,0.00019,2]
[425260386,1781639441000,-1888.26790747,0.00019,2]
[425260385,1781639441000,-160.0,0.00019,2]
[425260388,1781639441000,-151.0,0.00019,2]
[425260390,1781639441000,-151.0,0.00019,2]
[425260389,1781639441000,-151.0,0.00019,2]
[425260391,1781639441000,-151.0,0.00019,2]
[425260400,1781639441000,-2257.764109,0.00019,2]
[425260394,1781639441000,-684.52174,0.00019,2]
[425260399,1781639441000,-2257.764109,0.00019,2]
[425260397,1781639441000,-2257.764109,0.00019,2]
[425260396,1781639441000,-151.0,0.00019,2]
[425260392,1781639441000,-684.52174,0.00019,2]
[425260393,1781639441000,-684.52174,0.00019,2]
[425260401,1781639441000,-500.0,0.00019,2]
[425260398,1781639441000,-2257.764109,0.00019,2]
[425260395,1781639441000,-684.52174,0.00019,2]
[425260402,1781639441000,-500.0,0.00019,2]